{"text_format":"2","workbook":"xlsx","n_sheets":1,"sheets":["Erősáram"],"not_rendered":{"charts":0,"images":0,"macros":0,"external_links":0,"defined_names":0,"comments":0,"pivot_tables":0},"unopened":[],"bounds":{"document_bytes":16777216,"sheet_cells":100000,"run_cost":"one","rows_first":2000,"rows_last":500,"rows_between":2000,"halvings":0,"cell_chars":16384,"cell_head_chars":4096},"cells_cut":0,"cells_raw":0,"read":"whole","date_system":"1900"}

{"sheet":"Erősáram","index":0,"n_rows":21,"n_cols":10,"rows_kept":21,"cut":false,"hidden":false,"merged":[[20,6,20,7]]}
[]
[null,null,null,"               KÖLTSÉGVETÉS"]
[]
[null,null,"SZTE TTIK mikrobiológiai Intézet  elektromos szerelés 520-as szoba"]
[]
[]
[]
[null,"520-as helyiség"]
["S.sz","Megnevezés","Menny.","Me","Anyag","Díj","Anyag Ö","Díj Ö"]
[1,"Meglévő kiselosztó bonása, majd felszerelése az intézet éltal meghatározott magasságba",4,"klt",null,null,{"$f":"C10*E10","v":0},{"$f":"C10*F10","v":0}]
[2,"DLP csatorna elhelyezése105X50 mm",10,"m",null,null,{"$f":"C11*E11","v":0},{"$f":"C11*F11","v":0}]
[3,"NYM 5x6mm2 kiskábel",25,"m",null,null,0,0]
[4,"Mcu 2,5 mm2 vezeték, MÜ csatornába szerelve",340,"m",null,null,0,0]
[5,"LEGRAND MOSAIC 4x2+F fehér dugalj DLP csatornába szerelve",10,"db",null,null,0,0]
[6,"Folyósi elosztóban szükséges leágazások kiépítése:1 db 40A, 30mA-es 4 pólusú ÁVK, 1db C32A 3 p. kismegszakító",1,"klt",null,null,0,0]
[7,"Szobai elosztó beleépítve:1 db C32 A 3 p. kismegszakító, 6 db 25A 30mA 2 p. ÁVK, 12 db C16 A 1 p. kismegszakító.",1,"db",null,null,0,0]
[8,"Érintésvédelmi mérés jegyzőkönyv készítéssel",1,"klt",null,null,0,0]
[]
[null,"ÖSSZESEN:",{"$nulls":4},{"$f":"SUM(G10:G17)","v":0},{"$f":"SUM(H10:H17)","v":0}]
[]
[null,"Összesen anyag+díj",{"$nulls":4},{"$f":"G19+H19","v":0},null,null,{"$f":"G21*1.27","v":0}]